Cogmind - Beta 14 @@@ ROGUE MODE // 2024.08.13 @ 21:41:42 Player: dorusv Result: Destroyed by Y-45 Defender with Heavy Assault Rifle Performance ------------- Evolutions (1) 500 Regions Visited (3) 600 Robots Destroyed (21) 105 Value Destroyed (539) 539 Prototype IDs (1) 20 Alien Tech Used (0) 0 Bonus (0) 0 TOTAL SCORE: 1764 Bonus ------- None Cogmind --------- Core Integrity 0/400 Matter 297/300 Energy 124/125 System Corruption 0% Temperature Cool (11) Movement Flying (37) Location -9/Storage Parts ------- > --- POWER (1) -------- Light Ion Engine > --- PROPULSION (2) --- Flight Unit Flight Unit > --- UTILITY (4) ------ Terrain Scan Processor ECM Suite > --- WEAPON (2) ------- Light Assault Rifle > --- INVENTORY (5) ---- Light Ion Engine Peak State ------------ > --- POWER ------------ Light Ion Engine > --- PROPULSION ------- Aluminum Leg Aluminum Leg > --- UTILITY ---------- Small Storage Unit Visual Processing Unit Sensor Array Shield Generator > --- WEAPON ----------- Small Laser Improved Medium Laser > --- INVENTORY -------- Light Ion Engine Light Ion Engine Small Laser [Rating: 13] Favorites ----------- Power Light Ion Engine Engine Light Ion Engine Propulsion Aluminum Leg Leg Aluminum Leg Wheel Wheel Flight Unit Flight Unit Utility Small Storage Unit Device Seismic Detector Storage Small Storage Unit Processor Visual Processing Unit Weapon Small Laser Energy Gun Small Laser Ballistic Gun Light Assault Rifle Build | -11 -10 -9 -9 ------- Run | Yrd Mat Mat Sto Slots Evolved 2 | . . 2 . Power . | . . . . Propulsion . | . . . . Utility 2 | . . 2 . Weapon . | . . . . Parts Attached 25 | 7 1 9 8 Power 5 | 1 . 2 2 Engine 5 | 1 . 2 2 Core . | . . . . Reactor . | . . . . Propulsion 8 | 2 . 4 2 Treads . | . . . . Leg 5 | 2 . 3 . Wheel 1 | . . 1 . Hover . | . . . . Flight 2 | . . . 2 Utility 7 | 2 . 3 2 Device 4 | 1 . 2 1 Storage 1 | 1 . . . Processor 2 | . . 1 1 Hackware . | . . . . Protection . | . . . . Artifact . | . . . . Weapon 5 | 2 1 . 2 Energy Gun 4 | 2 1 . 1 Energy Cannon . | . . . . Ballistic Gun 1 | . . . 1 Ballistic Cannon . | . . . . Launcher . | . . . . Special Weapon . | . . . . Impact Weapon . | . . . . Slashing Weapon . | . . . . Piercing Weapon . | . . . . Special Melee Weapon . | . . . . Unidentified Prototypes 1 | . 1 . . Parts Lost 8 | . 1 5 2 Power 2 | . . 1 1 Propulsion 1 | . . 1 . Utility 3 | . . 3 . Weapon 2 | . 1 . 1 Highest Loss Streak 4 | . 1 3 4 To Critical Strikes . | . . . . Average Slot Usage (%) 84 | . 97 89 36 Engine 10 | . 14 8 7 Leg 19 | . 28 19 . Flight 1 | . . . 8 Device 15 | . 14 19 2 Storage 9 | . 14 10 . Processor 5 | . . 10 2 Energy Gun 20 | . 25 20 9 Peak Build Rating 13 | 7 9 13 8 Average Rating 8 | 5 7 11 3 On Entrance 4 | . 7 9 . Naked Turns 31 | . . 27 4 Heaviest Build 16 | 12 13 16 7 Greatest Support 20 | 20 20 20 8 Greatest Overweight (x) 1 | 1 . 1 1 Average Overweight (x) . | . . . . Largest Inventory Capacity 8 | 8 8 8 5 Average Capacity 7 | 7 8 7 5 Most Carried 6 | 2 5 6 3 Average Carried 3 | 1 4 3 1 Final Capacity 8 | 8 8 5 5 Final Carried 5 | 2 5 3 1 Class Distribution -------------------- 74% | Mutant 25% | Scavenger-Mutant Dominant Class ---------------- Mutant | -10/Materials Mutant | -9/Materials Scavenger-Mutant | -9/Storage Resources | -11 -10 -9 -9 ----------- Run | Yrd Mat Mat Sto Matter Collected 570 | 228 26 226 90 Remotely . | . . . . Salvage Created 739 | 68 326 296 49 Parts 48 | 5 20 13 10 Haulers Intercepted . | . . . . Recyclers Shooed . | . . . . Parts Field Recycled . | . . . . Retrieved Matter . | . . . . Parts Self-Destructed . | . . . . Prevented . | . . . . Kills | -11 -10 -9 -9 ------- Run | Yrd Mat Mat Sto Combat Hostiles Destroyed 15 | . 6 6 3 Guns 15 | . 6 6 3 Classes Destroyed 8 | 2 4 1 1 Worker 1 | . 1 . . Tunneler 1 | 1 . . . Recycler 1 | 1 . . . Operator 1 | . 1 . . Watcher 2 | . 1 1 . Swarmer 3 | . . . 3 Grunt 11 | . 6 5 . Duelist 1 | . . 1 . Best Kill Streak 5 | 1 3 5 3 Combat Bots Only 4 | . 2 4 3 Max Kills in Single Turn 1 | 1 1 1 1 Gunslinging . | . . . . Exploded . | . . . . Melee . | . . . . Uniques/NPCs Destroyed . | . . . . Combat | -11 -10 -9 -9 -------- Run | Yrd Mat Mat Sto Hostile Shots Fired 172 | . 36 87 49 Missed 55 | . 13 25 17 Damage Taken 1298 | . 277 718 303 Core 496 | . 93 273 130 Absorbed by Shields 40 | . . 40 . Core Remaining (%) 81 | 100 62 . . Volleys Fired 83 | 3 24 37 19 Largest 2 | 2 2 2 2 Hottest 96 | 80 96 96 60 Shots Fired 140 | 6 43 67 24 Gun 140 | 6 43 67 24 Cannon . | . . . . Launcher . | . . . . Special . | . . . . Kinetic 8 | . . . 8 Thermal 119 | 3 33 67 16 Explosive . | . . . . Electromagnetic 13 | 3 10 . . Robot Hit Streak 8 | 2 7 4 8 Robot Miss Streak 5 | 1 5 5 4 Penetration Max . | . . . . Secondary Targets 3 | . 1 2 . Max Gunslinging Chain 1 | . 1 1 . Shots Hit Robots 72 | 3 20 35 14 Core Hits 35 | 3 14 13 5 Critical Kills . | . . . . Critical Parts Destroyed . | . . . . Critical Strikes 6 | . 3 3 . Burn 6 | . 3 3 . Melee Attacks . | . . . . Impact . | . . . . Slashing . | . . . . Piercing . | . . . . Sneak Attacks . | . . . . Combat Hostiles . | . . . . Follow-up Attacks . | . . . . Damage Inflicted 1140 | 56 352 603 129 Guns 1122 | 39 351 603 129 Cannons . | . . . . Explosions . | . . . . Melee . | . . . . Ramming 18 | 17 1 . . Kinetic 52 | . . . 52 Thermal 973 | 12 281 603 77 Explosive . | . . . . Electromagnetic 97 | 27 70 . . Impact . | . . . . Slashing . | . . . . Piercing . | . . . . Highest Corruption . | . . . . Average Corruption . | . . . . Corruption Purged . | . . . . Corruption Blocked . | . . . . Overload Shots . | . . . . Overflow Damage . | . . . . Projectiles . | . . . . Explosions . | . . . . Melee . | . . . . Knockbacks . | . . . . Impact . | . . . . Kinetic . | . . . . Secondary . | . . . . Self-Inflicted Damage . | . . . . Shots . | . . . . Rammed . | . . . . Targets Rammed 8 | 7 1 . . Kicked 8 | 7 1 . . Crushed . | . . . . Highest Temperature 545 | 18 300 545 67 Average Temperature 150 | 12 107 204 28 Received Heat Transfer 578 | . 171 362 45 Effects 18 | . . 18 . Shutdowns 2 | . . 2 . Interference 2 | . . 2 . Matter Decay 4 | . . 4 . Short Circuit 3 | . . 3 . Damage (minor) 3 | . . 3 . Damage (major) 4 | . . 4 . Siege Activations . | . . . . Robots Corrupted . | . . . . Combat Hostiles . | . . . . Parts Fried . | . . . . Impact Corruptions . | . . . . Robots Melted . | . . . . Combat Hostiles . | . . . . Parts Melted 6 | . 3 3 . Heat Transferred 2616 | 25 843 1573 175 Parts Sabotaged . | . . . . Parts Stolen . | . . . . Parts Stripped . | . . . . Power Chain Reactions . | . . . . Alert | -11 -10 -9 -9 ------- Run | Yrd Mat Mat Sto Peak Influence 285 | 10 207 285 182 Initial 107 | . 6 87 107 Average 130 | 3 98 178 155 Maximum Alert Level 1 | . 1 1 . Low Security (%) 78 | 100 90 61 100 Level 1 21 | . 9 38 . Level 2 . | . . . . Level 3 . | . . . . Level 4 . | . . . . Level 5 . | . . . . High Security . | . . . . Max Security . | . . . . Squads Dispatched 5 | . 2 3 . Investigation 3 | . 1 2 . Extermination . | . . . . Reinforcement 2 | . 1 1 . Assault . | . . . . Garrison . | . . . . Intercept . | . . . . Searches Triggered . | . . . . Construction Impeded . | . . . . Haulers Reinforced . | . . . . Active Scanning Responses . | . . . . Cargo Convoy Interrupts . | . . . . Stealth | -11 -10 -9 -9 --------- Run | Yrd Mat Mat Sto Distress Signals 2 | . . 2 . Communications Jammed . | . . . . Distress Signals . | . . . . Times Spotted 41 | . 8 26 7 Peak Tracking Total 12 | . 2 12 4 Tactical Retreats 1 | . . . 1 Traps | -11 -10 -9 -9 ------- Run | Yrd Mat Mat Sto Traps Triggered . | . . . . Indirectly . | . . . . Trap Hack Attempts . | . . . . Triggered . | . . . . Disarmed . | . . . . Reprogrammed . | . . . . Reused . | . . . . Traps Extracted . | . . . . Installed . | . . . . Triggered . | . . . . Machines | -11 -10 -9 -9 ---------- Run | Yrd Mat Mat Sto Machines Disabled . | . . . . Max in Single Turn . | . . . . Machines Repaired . | . . . . Machines Dismantled . | . . . . Machines Sabotaged . | . . . . Overloaded Fab Kills . | . . . . Hacking | -11 -10 -9 -9 --------- Run | Yrd Mat Mat Sto Machines Accessed 3 | . 1 2 . Terminals 3 | . 1 2 . Fabricators . | . . . . Repair Stations . | . . . . Recycling Units . | . . . . Scanalyzers . | . . . . Garrison Access . | . . . . Total Hacks 9 | . 3 6 . Successful 3 | . 2 1 . Failed 6 | . 1 5 . Catastrophic 2 | . . 2 . Database Lockouts . | . . . . Manual 11 | . 3 6 2 Terminals 9 | . 3 6 . Fabricators . | . . . . Repair Stations . | . . . . Recycling Units . | . . . . Scanalyzers . | . . . . Garrison Access . | . . . . Terminal Hacks 3 | . 2 1 . Patrol Status 1 | . 1 . . Zone Layout 2 | . 1 1 . Fabricator Hacks . | . . . . Repair Station Hacks . | . . . . Recycling Unit Hacks . | . . . . Scanalyzer . | . . . . Garrison Access Hacks . | . . . . Unauthorized Hacks . | . . . . Terminals . | . . . . Fabricators . | . . . . Repair Stations . | . . . . Recycling Units . | . . . . Scanalyzers . | . . . . Garrison Access . | . . . . Data Cores Recovered . | . . . . Used . | . . . . Hacking Detections 3 | . 1 2 . Full Trace Events 3 | . 1 2 . Feedback Events . | . . . . Feedback Blocked . | . . . . Robot Schematics Acquired . | . . . . Robots Built . | . . . . Authchips . | . . . . Time . | . . . . Total Robot Build Rating . | . . . . Part Schematics Acquired . | . . . . Parts Built . | . . . . Authchips . | . . . . Time . | . . . . Total Part Build Rating . | . . . . Parts Repaired . | . . . . Time . | . . . . Parts Recycled . | . . . . Recycled Matter . | . . . . Retrieved Matter . | . . . . Retrieved Components . | . . . . Parts Scanalyzed . | . . . . Part Schematics Acquired . | . . . . Parts Damaged . | . . . . Bothacking | -11 -10 -9 -9 ------------ Run | Yrd Mat Mat Sto Used RIF Installer . | . . . . Robots Hacked . | . . . . Non-combat . | . . . . Combat . | . . . . Robot Hacks Applied . | . . . . Relay Couplers Released . | . . . . Fabnet Peak Effective % . | . . . . Robots Rewired . | . . . . Allies Hacked . | . . . . Hacks Repelled . | . . . . Allies | -11 -10 -9 -9 -------- Run | Yrd Mat Mat Sto Total Allies . | . . . . Largest Group . | . . . . Highest-Rated Group . | . . . . Highest-Rated Ally . | . . . . Total Orders . | . . . . Ally Attacks . | . . . . Total Damage . | . . . . Kills . | . . . . Allies Corrupted . | . . . . Allies Melted . | . . . . Intel | -11 -10 -9 -9 ------- Run | Yrd Mat Mat Sto Robot Analysis Total . | . . . . Derelict Logs Recovered . | . . . . Drone Launches . | . . . . Drone Recoveries . | . . . . Exploration | -11 -10 -9 -9 ------------- Run | Yrd Mat Mat Sto Turns Passed 776 | 108 205 372 91 Spaces Moved 470 | 74 111 214 71 Core 100 | 15 . 53 32 Treads . | . . . . Legs 331 | 59 111 161 . Wheels . | . . . . Hover . | . . . . Flight 39 | . . . 39 Fastest Speed 37 | 50 120 50 37 Average Speed 102 | 106 120 106 56 Slowest Speed 190 | 120 120 190 120 Overloaded Moves . | . . . . Propulsion Burnouts . | . . . . Robots Hopped . | . . . . Cave-ins Triggered . | . . . . Exploration Rate (%) 15 | 4 21 27 11 Regions Visited 3 Branch Regions 1 Pre-discovered Areas . | . . . . Known Exits Taken . | . . . . Unknown Exits Taken 3 | 1 1 1 . Scrap Searched . | . . . . Spaces Dug . | . . . . Terrain Destroyed . | . . . . Melee . | . . . . Projectile . | . . . . AOE . | . . . . Terrain Rammed . | . . . . Walls Destroyed . | . . . . Machines Disabled . | . . . . Actions | -11 -10 -9 -9 --------- Run | Yrd Mat Mat Sto Total 616 | 92 139 287 98 Wait 26 | . . 26 . Move 468 | 74 110 213 71 Hop . | . . . . Pick Up 5 | 2 3 . . Fast Attach 17 | 7 1 3 6 Attach 5 | . . 3 2 Detach . | . . . . Swap 3 | . . 3 . Drop 2 | . . 2 . Fire 83 | 3 24 37 19 Melee . | . . . . Ram . | . . . . Kick 7 | 6 1 . . Crush . | . . . . Escape Stasis . | . . . . Rewire . | . . . . Trap . | . . . . Miscellaneous . | . . . . Route ------- -11/Scrapyard -10/Materials -9/Materials -9/Storage History --------- Turn | Location | Event 7 | -11/Scrapyard | Discovered new exit (range 15) 109 | -11/Scrapyard | Entered Materials 278 | -10/Materials | Discovered new exit (range 13) 314 | -10/Materials | Entered another Materials area 314 | -9/Materials | Evolved 2 slots: Utility x2 336 | -9/Materials | Build established: Mutant 658 | -9/Materials | Released all parts (7) 676 | -9/Materials | Core integrity fell below 50% 677 | -9/Materials | Discovered new exit (range 10) 686 | -9/Materials | Entered Storage 698 | -9/Storage | Core integrity fell below 20% 734 | -9/Storage | Lost 4 parts (1p1n2u) 777 | -9/Storage | Destroyed by Y-45 Defender with Heavy Assault Rifle Last Messages --------------- 00676_ Wheel destroyed. 00677_ EXIT=FOUND LOCATION=UNKNOWN GOAL=ESCAPE 00702_ S-10 Pest destroyed. 00703_ Lgt. Ion Engine destroyed. 00712_ S-10 Pest destroyed. 00720_ Acquired Lgt. Assault Rifle. 00722_ Acquired 11 matter. 00723_ Acquired 29 matter. 00724_ Acquired Lgt. Ion Engine. 00725_ Acquired 10 matter. 00738_ Acquired Flight Unit. 00751_ Acquired ECM Suite. 00754_ Extracted 30 matter. 00754_ Acquired Terrain Scan Processor. 00756_ Extracted 10 matter. 00759_ Connecting with Door Terminal... 00759_ Current location identified: Storage 00771_ Sml. Laser destroyed. Map ----- +----------------------------------------------------+ | | | | | | | ????????????????????????????????????????????? | | ????????????????????????????????????????????? | | ????????????????????????????????????????????? | | ????????????????????????????????????????????? | | ????????????????????????????????????????????? | | ????????##########################??????????? | | ????????# * ?????????? | | ????????# [=%[ ?????????? | | ????????# * ?????????? | | ????????######## = ###############??????????? | | ???????????????# =#????????????????????????? | | ???????????????# #????????????????????????? | | ???????????????# #????????????????????????? | | ???????????????# #????????????????????????? | | ??????????##" ## +????????????????????????? | | ??????????#T + #????????????????????????? | | ??????????## # #????????????????????????? | | ???????????##??# #????????????????????????? | | ???????????????# #????????????????????????? | | ???????????????# #########????????????????? | | ???????????????# # #!! !#????????????????? | | ???????????????# g# " !!#????????????????? | | ???????????????# Y@ !!#????????????????? | | ???????????????# # " #????????????????? | | ???????????????# ##T# !#????????????????? | | ???????????????# #### !!!#????????????????? | | ???????????????# #??######????????????????? | | ???????????????# #????????????????????????? | | ???????????????# #????????????????????????? | | ??????????????? ????????????????????????? | | ??????????????# ????????????????????????? | | ??????????????# ????????????????????????? | | ??????????????# ????????????????????????? | | ??????????????# ????????????????????????? | | ??????????????#### ????????????????????????? | | ?????????????????? ????????????????????????? | | ?????????????????? ????????????????????????? | | ?????????????????? ????????????????????????? | | ????????????????????????????????????????????? | | ????????????????????????????????????????????? | | ????????????????????????????????????????????? | | ????????????????????????????????????????????? | | ????????????????????????????????????????????? | | ????????????????????????????????????????????? | | ????????????????????????????????????????????? | | ????????????????????????????????????????????? | | ????????????????????????????????????????????? | +----------------------------------------------------+ Best States ------------- Heat Dissipation 28 Energy Generation 10 Energy Capacity 250 Matter Stores 300 Matter Capacity 300 Sight Range 18 Robot Scan Range 14 Terrain Scan Density 85 ECM Strength 1 Evasion (%) 62 Item Schematics ----------------- None Robot Schematics ------------------ None Fabricated ------------ Nothing Alien Tech Used ----------------- None Achievements -------------- None Challenges ------------ None Game ------ Seed UtilityWeaponsLegs Manual? 0 Play Time 00:12:26 Cumulative 4.1 hours Start 2024.08.13 @ 15:04:17 End 2024.08.13 @ 21:41:42 Sessions 3 Manual Loads 0 Difficulty Rogue Special Mode None Game No. 17 Rogue 14 Adventurer 3 Explorer 0 Win Type - Total 0 Types 0/0/0/0/0/0/0/0/0 Lore% 8 Gallery% 10 Achievement% 12 Wizard Run 0 Options --------- Layout 1 ASCII 0 Keyboard 1 Movement Arrows Keybinds 0 Fullscreen 1 Font 28/Smallcaps Map View 50x43 Zoom Use 0% Tactical HUD 1 Map Filters NONE Filters NONE Steam 1 RUN: 942051b5-b212-4e8b-b5f1-673549667f10